[Event "Titled Tuesday Blitz February 15 Late 2022"]
[White "Martinez Ramirez, Lennis"]
[Black "Krstulovic, Alex"]
[WhiteFideId "3509079"]
[BlackFideId "760056"]
[WhiteElo "2374"]
[BlackElo "2193"]
[Result "0-1"]
[Round "02"]
[TimeControl "180+1"]
[Date "2022.02.16"]
[WhiteClock "0:00:21"]
[BlackClock "0:00:09"]

1. d4 {[%clk 0:03:00]}  Nf6 {[%clk 0:02:59]} 2. Nc3 {[%clk 0:03:00]}  d5 {[%clk 0:02:59]} 3. Bg5 {[%clk 0:03:00]}  Nbd7 {[%clk 0:02:52]} 4. Qd3 {[%clk 0:03:00]}  h6 {[%clk 0:02:47]} 5. Bh4 {[%clk 0:02:57]}  g5 {[%clk 0:02:46]} 6. Bg3 {[%clk 0:02:57]}  Bg7 {[%clk 0:02:46]} 7. O-O-O {[%clk 0:02:56]}  c6 {[%clk 0:02:45]} 8. h4 {[%clk 0:02:55]}  g4 {[%clk 0:02:44]} 9. f3 {[%clk 0:02:38]}  Qa5 {[%clk 0:02:35]} 10. e4 {[%clk 0:02:34]}  Nb6 {[%clk 0:02:28]} 11. Be1 {[%clk 0:02:11]}  dxe4 {[%clk 0:02:08]} 12. fxe4 {[%clk 0:02:02]}  Na4 {[%clk 0:01:42]} 13. Nge2 {[%clk 0:01:41]}  Be6 {[%clk 0:01:29]} 14. d5 {[%clk 0:01:34]}  cxd5 {[%clk 0:01:21]} 15. Nxd5 {[%clk 0:01:22]}  Qc5 {[%clk 0:00:55]} 16. Bb4 {[%clk 0:01:07]}  Qc6 {[%clk 0:00:22]} 17. Nd4 {[%clk 0:01:06]}  Qc8 {[%clk 0:00:17]} 18. Nxe6 {[%clk 0:01:04]}  fxe6 {[%clk 0:00:18]} 19. Nxf6+ {[%clk 0:00:54]}  Bxf6 {[%clk 0:00:15]} 20. Qb5+ {[%clk 0:00:42]}  Qc6 {[%clk 0:00:15]} 21. Qh5+ {[%clk 0:00:36]}  Kf8 {[%clk 0:00:14]} 22. c3 {[%clk 0:00:23]}  Bxc3 {[%clk 0:00:05]} 23. bxc3 {[%clk 0:00:23]}  Nxc3 {[%clk 0:00:06]} 24. Qc5 {[%clk 0:00:13]}  Qxc5 {[%clk 0:00:02]} 25. Bxc5 {[%clk 0:00:14]}  Rc8 {[%clk 0:00:02]} 26. Bc4 {[%clk 0:00:10]}  Rxc5 {[%clk 0:00:01]} 27. Rd8+ {[%clk 0:00:10]}  Kg7 {[%clk 0:00:02]} 28. Rd7 {[%clk 0:00:07]}  Rxc4 {[%clk 0:00:01]} 29. Rxe7+ {[%clk 0:00:08]}  Kf6 {[%clk 0:00:02]} 30. Rxb7 {[%clk 0:00:08]}  Nxe4+ {[%clk 0:00:02]} 31. Kb2 {[%clk 0:00:09]}  Rhc8 {[%clk 0:00:02]} 32. Rf1+ {[%clk 0:00:09]}  Ke5 {[%clk 0:00:03]} 33. Rb5+ {[%clk 0:00:09]}  Kd4 {[%clk 0:00:03]} 34. Rb3 {[%clk 0:00:10]}  Rc2+ {[%clk 0:00:03]} 35. Ka3 {[%clk 0:00:10]}  Nc3 {[%clk 0:00:03]} 36. Rd1+ {[%clk 0:00:11]}  Nxd1 {[%clk 0:00:03]} 37. Rb4+ {[%clk 0:00:11]}  R2c4 {[%clk 0:00:03]} 38. Rb1 {[%clk 0:00:11]}  Rc3+ {[%clk 0:00:03]} 39. Ka4 {[%clk 0:00:10]}  R8c4+ {[%clk 0:00:04]} 40. Kb5 {[%clk 0:00:11]}  Rc5+ {[%clk 0:00:04]} 41. Ka6 {[%clk 0:00:11]}  Rd3 {[%clk 0:00:04]} 42. Rb8 {[%clk 0:00:10]}  Ra3+ {[%clk 0:00:05]} 43. Kb7 {[%clk 0:00:10]}  Rb5+ {[%clk 0:00:05]} 44. Ka8 {[%clk 0:00:11]}  Rxb8+ {[%clk 0:00:06]} 45. Kxb8 {[%clk 0:00:11]}  Kc5 {[%clk 0:00:07]} 46. Ka8 {[%clk 0:00:12]}  Ra6 {[%clk 0:00:07]} 47. Kb7 {[%clk 0:00:13]}  Rd6 {[%clk 0:00:08]} 48. g3 {[%clk 0:00:13]}  a5 {[%clk 0:00:08]} 49. a4 {[%clk 0:00:14]}  Nc3 {[%clk 0:00:08]} 50. Ka7 {[%clk 0:00:15]}  Nxa4 {[%clk 0:00:08]} 51. Kb7 {[%clk 0:00:16]}  Kb5 {[%clk 0:00:08]} 52. Kc7 {[%clk 0:00:17]}  Rd5 {[%clk 0:00:07]} 53. Kb7 {[%clk 0:00:18]}  Rd7+ {[%clk 0:00:07]} 54. Kc8 {[%clk 0:00:18]}  Kc6 {[%clk 0:00:08]} 55. Kb8 {[%clk 0:00:19]}  Nc3 {[%clk 0:00:08]} 56. Ka8 {[%clk 0:00:20]}  Kb6 {[%clk 0:00:08]} 57. Kb8 {[%clk 0:00:21]}  Rd8# {[%clk 0:00:09]} 0-1


[Site "https://www.chess.com"]

[Event "Titled Tuesday Blitz February 15 Late 2022"]
[White "Medeiros Jr, Francisco De Assis"]
[Black "Kozin, Yuri"]
[WhiteFideId "2114267"]
[BlackFideId "4129920"]
[WhiteElo "1998"]
[BlackElo "2526"]
[Result "1/2-1/2"]
[Round "02"]
[TimeControl "180+1"]
[Date "2022.02.16"]
[WhiteClock "0:00:05"]
[BlackClock "0:00:16"]

1. d4 {[%clk 0:03:00]}  d5 {[%clk 0:03:00]} 2. Nf3 {[%clk 0:03:01]}  Nf6 {[%clk 0:02:59]} 3. Bg5 {[%clk 0:03:01]}  Ne4 {[%clk 0:02:59]} 4. Bf4 {[%clk 0:03:02]}  c5 {[%clk 0:02:56]} 5. c3 {[%clk 0:03:02]}  cxd4 {[%clk 0:02:55]} 6. cxd4 {[%clk 0:03:02]}  Nc6 {[%clk 0:02:56]} 7. e3 {[%clk 0:03:01]}  Bg4 {[%clk 0:02:56]} 8. Nc3 {[%clk 0:03:00]}  Qa5 {[%clk 0:02:54]} 9. Qb3 {[%clk 0:02:56]}  Nxc3 {[%clk 0:02:37]} 10. bxc3 {[%clk 0:02:50]}  e6 {[%clk 0:02:26]} 11. Bb5 {[%clk 0:02:40]}  Bxf3 {[%clk 0:02:22]} 12. gxf3 {[%clk 0:02:39]}  Be7 {[%clk 0:02:22]} 13. O-O {[%clk 0:02:35]}  O-O {[%clk 0:02:21]} 14. Kh1 {[%clk 0:02:28]}  Rac8 {[%clk 0:02:17]} 15. Rg1 {[%clk 0:02:20]}  Rfd8 {[%clk 0:02:06]} 16. Bd3 {[%clk 0:02:12]}  Rd7 {[%clk 0:01:45]} 17. Qb1 {[%clk 0:02:04]}  f5 {[%clk 0:01:38]} 18. Bb5 {[%clk 0:01:39]}  Qxc3 {[%clk 0:01:33]} 19. Bxc6 {[%clk 0:01:33]}  Rxc6 {[%clk 0:01:30]} 20. Be5 {[%clk 0:01:29]}  g6 {[%clk 0:01:21]} 21. Qf1 {[%clk 0:01:19]}  Bd6 {[%clk 0:01:15]} 22. f4 {[%clk 0:01:02]}  Bxe5 {[%clk 0:01:15]} 23. fxe5 {[%clk 0:01:02]}  Qc2 {[%clk 0:01:11]} 24. Qg2 {[%clk 0:00:26]}  Rdc7 {[%clk 0:01:06]} 25. h4 {[%clk 0:00:20]}  Qe4 {[%clk 0:01:05]} 26. Qxe4 {[%clk 0:00:20]}  fxe4 {[%clk 0:01:04]} 27. h5 {[%clk 0:00:21]}  Rg7 {[%clk 0:01:04]} 28. hxg6 {[%clk 0:00:20]}  Rxg6 {[%clk 0:01:04]} 29. Rgc1 {[%clk 0:00:20]}  Ra6 {[%clk 0:00:51]} 30. Rc7 {[%clk 0:00:19]}  Rg7 {[%clk 0:00:49]} 31. Rac1 {[%clk 0:00:14]}  Rxc7 {[%clk 0:00:47]} 32. Rxc7 {[%clk 0:00:15]}  Rxa2 {[%clk 0:00:43]} 33. Kg2 {[%clk 0:00:12]}  b6 {[%clk 0:00:42]} 34. Kg3 {[%clk 0:00:12]}  b5 {[%clk 0:00:38]} 35. Rb7 {[%clk 0:00:11]}  a6 {[%clk 0:00:38]} 36. f4 {[%clk 0:00:07]}  exf3 {[%clk 0:00:35]} 37. Kxf3 {[%clk 0:00:07]}  h6 {[%clk 0:00:31]} 38. Kg4 {[%clk 0:00:07]}  Rg2+ {[%clk 0:00:29]} 39. Kh5 {[%clk 0:00:07]}  Rg3 {[%clk 0:00:26]} 40. Kxh6 {[%clk 0:00:07]}  Rxe3 {[%clk 0:00:25]} 41. Kg6 {[%clk 0:00:07]}  Rf3 {[%clk 0:00:21]} 42. Rb8+ {[%clk 0:00:06]}  Rf8 {[%clk 0:00:21]} 43. Rb7 {[%clk 0:00:06]}  Rf5 {[%clk 0:00:17]} 44. Rb8+ {[%clk 0:00:04]}  Rf8 {[%clk 0:00:17]} 45. Rb7 {[%clk 0:00:04]}  Ra8 {[%clk 0:00:17]} 46. Rg7+ {[%clk 0:00:04]}  Kh8 {[%clk 0:00:16]} 47. Rh7+ {[%clk 0:00:04]}  Kg8 {[%clk 0:00:17]} 48. Rg7+ {[%clk 0:00:04]}  Kf8 {[%clk 0:00:17]} 49. Rh7 {[%clk 0:00:05]}  Re8 {[%clk 0:00:15]} 50. Rf7+ {[%clk 0:00:05]}  Kg8 {[%clk 0:00:15]} 51. Rg7+ {[%clk 0:00:06]}  Kh8 {[%clk 0:00:15]} 52. Rh7+ {[%clk 0:00:06]}  Kg8 {[%clk 0:00:15]} 53. Rg7+ {[%clk 0:00:06]}  Kf8 {[%clk 0:00:16]} 54. Rf7+ {[%clk 0:00:05]} 1/2-1/2


[Site "https://www.chess.com"]

[Event "Titled Tuesday Blitz February 15 Late 2022"]
[White "Mekhitarian, Krikor Sevag"]
[Black "Yurovskykh, Oleksandr"]
[WhiteFideId "2107660"]
[BlackFideId "14134020"]
[WhiteElo "2598"]
[BlackElo "2292"]
[Result "1-0"]
[Round "02"]
[TimeControl "180+1"]
[Date "2022.02.15"]
[WhiteClock "0:00:28"]
[BlackClock "0:00:02"]

1. e4 {[%clk 0:03:00]}  d5 {[%clk 0:02:55]} 2. exd5 {[%clk 0:03:00]}  Qxd5 {[%clk 0:02:56]} 3. Nc3 {[%clk 0:02:59]}  Qd8 {[%clk 0:02:56]} 4. d4 {[%clk 0:02:58]}  Nf6 {[%clk 0:02:56]} 5. Nf3 {[%clk 0:02:58]}  Bg4 {[%clk 0:02:55]} 6. h3 {[%clk 0:02:57]}  Bxf3 {[%clk 0:02:55]} 7. Qxf3 {[%clk 0:02:58]}  c6 {[%clk 0:02:56]} 8. Be3 {[%clk 0:02:53]}  e6 {[%clk 0:02:56]} 9. Bd3 {[%clk 0:02:51]}  Nbd7 {[%clk 0:02:56]} 10. O-O {[%clk 0:02:51]}  Bd6 {[%clk 0:02:55]} 11. Rad1 {[%clk 0:02:51]}  O-O {[%clk 0:02:55]} 12. Rfe1 {[%clk 0:02:51]}  Re8 {[%clk 0:02:51]} 13. Bc1 {[%clk 0:02:51]}  Qc7 {[%clk 0:02:50]} 14. g3 {[%clk 0:02:50]}  Rad8 {[%clk 0:02:50]} 15. Kg2 {[%clk 0:02:50]}  Nb6 {[%clk 0:02:27]} 16. Ne4 {[%clk 0:02:45]}  Nxe4 {[%clk 0:02:27]} 17. Qxe4 {[%clk 0:02:46]}  g6 {[%clk 0:02:27]} 18. c4 {[%clk 0:02:39]}  Nd7 {[%clk 0:02:24]} 19. a3 {[%clk 0:02:15]}  Bf8 {[%clk 0:02:13]} 20. Bf4 {[%clk 0:02:10]}  Qa5 {[%clk 0:02:02]} 21. Bb1 {[%clk 0:02:02]}  Bg7 {[%clk 0:01:56]} 22. Be3 {[%clk 0:02:00]}  e5 {[%clk 0:01:39]} 23. dxe5 {[%clk 0:01:58]}  Qxe5 {[%clk 0:01:28]} 24. Qxe5 {[%clk 0:01:53]}  Nxe5 {[%clk 0:01:29]} 25. b3 {[%clk 0:01:08]}  a6 {[%clk 0:01:24]} 26. Bb6 {[%clk 0:01:06]}  Rxd1 {[%clk 0:01:23]} 27. Rxd1 {[%clk 0:01:04]}  f5 {[%clk 0:00:26]} 28. f4 {[%clk 0:01:00]}  Nf7 {[%clk 0:00:26]} 29. Kf3 {[%clk 0:01:00]}  Re7 {[%clk 0:00:23]} 30. b4 {[%clk 0:00:54]}  Bf8 {[%clk 0:00:18]} 31. c5 {[%clk 0:00:53]}  Bg7 {[%clk 0:00:17]} 32. Ba2 {[%clk 0:00:51]}  Bb2 {[%clk 0:00:17]} 33. Bd8 {[%clk 0:00:38]}  Re4 {[%clk 0:00:14]} 34. Rd7 {[%clk 0:00:37]}  Bxa3 {[%clk 0:00:05]} 35. Rxf7 {[%clk 0:00:35]}  Rxb4 {[%clk 0:00:04]} 36. Rxb7+ {[%clk 0:00:33]}  Kf8 {[%clk 0:00:04]} 37. Be7+ {[%clk 0:00:29]}  Ke8 {[%clk 0:00:03]} 38. Rxb4 {[%clk 0:00:29]}  Bxb4 {[%clk 0:00:04]} 39. Bd6 {[%clk 0:00:30]}  a5 {[%clk 0:00:02]} 40. g4 {[%clk 0:00:28]} 1-0


[Site "https://www.chess.com"]

[Event "Titled Tuesday Blitz February 15 Late 2022"]
[White "Mikhalsky, Vladimir"]
[Black "Rosen, Eric"]
[WhiteFideId "14144352"]
[BlackFideId "2032562"]
[WhiteElo "2248"]
[BlackElo "2362"]
[Result "0-1"]
[Round "02"]
[TimeControl "180+1"]
[Date "2022.02.16"]
[WhiteClock "0:00:04"]
[BlackClock "0:00:30"]

1. c4 {[%clk 0:02:17]}  e6 {[%clk 0:02:55]} 2. g3 {[%clk 0:02:16]}  d5 {[%clk 0:02:56]} 3. Bg2 {[%clk 0:02:16]}  Nf6 {[%clk 0:02:56]} 4. Nf3 {[%clk 0:02:16]}  d4 {[%clk 0:02:53]} 5. O-O {[%clk 0:02:16]}  c5 {[%clk 0:02:50]} 6. e3 {[%clk 0:02:16]}  Nc6 {[%clk 0:02:50]} 7. exd4 {[%clk 0:02:16]}  cxd4 {[%clk 0:02:51]} 8. Re1 {[%clk 0:02:14]}  Be7 {[%clk 0:02:49]} 9. d3 {[%clk 0:02:14]}  Nd7 {[%clk 0:02:47]} 10. a3 {[%clk 0:01:50]}  a5 {[%clk 0:02:46]} 11. Nbd2 {[%clk 0:01:41]}  O-O {[%clk 0:02:45]} 12. Ne4 {[%clk 0:01:35]}  e5 {[%clk 0:02:44]} 13. g4 {[%clk 0:01:21]}  Re8 {[%clk 0:02:29]} 14. Ng3 {[%clk 0:01:17]}  g6 {[%clk 0:02:29]} 15. g5 {[%clk 0:01:13]}  Bf8 {[%clk 0:02:22]} 16. h4 {[%clk 0:01:09]}  Nc5 {[%clk 0:02:20]} 17. Qc2 {[%clk 0:00:50]}  a4 {[%clk 0:02:13]} 18. Bd2 {[%clk 0:00:49]}  Nb3 {[%clk 0:02:11]} 19. Rad1 {[%clk 0:00:48]}  Bg4 {[%clk 0:02:11]} 20. Re4 {[%clk 0:00:44]}  Qd7 {[%clk 0:02:00]} 21. Rde1 {[%clk 0:00:41]}  Bg7 {[%clk 0:01:53]} 22. Kh2 {[%clk 0:00:41]}  Rac8 {[%clk 0:01:46]} 23. Ng1 {[%clk 0:00:34]}  Ne7 {[%clk 0:01:37]} 24. f3 {[%clk 0:00:30]}  Bf5 {[%clk 0:01:25]} 25. Nxf5 {[%clk 0:00:29]}  Nxf5 {[%clk 0:01:26]} 26. Bh3 {[%clk 0:00:28]}  b5 {[%clk 0:01:25]} 27. f4 {[%clk 0:00:25]}  Qc7 {[%clk 0:01:14]} 28. Bxf5 {[%clk 0:00:20]}  gxf5 {[%clk 0:01:14]} 29. R4e2 {[%clk 0:00:20]}  bxc4 {[%clk 0:01:08]} 30. dxc4 {[%clk 0:00:20]}  e4 {[%clk 0:01:09]} 31. Kg3 {[%clk 0:00:17]}  Qxc4 {[%clk 0:01:05]} 32. Qxc4 {[%clk 0:00:17]}  Rxc4 {[%clk 0:01:05]} 33. Bb4 {[%clk 0:00:16]}  Rec8 {[%clk 0:00:57]} 34. h5 {[%clk 0:00:16]}  Nc1 {[%clk 0:00:56]} 35. h6 {[%clk 0:00:15]}  Nxe2+ {[%clk 0:00:55]} 36. Nxe2 {[%clk 0:00:15]}  Bf8 {[%clk 0:00:55]} 37. Rd1 {[%clk 0:00:13]}  Bxb4 {[%clk 0:00:54]} 38. axb4 {[%clk 0:00:13]}  Rd8 {[%clk 0:00:55]} 39. b5 {[%clk 0:00:12]}  Rb4 {[%clk 0:00:55]} 40. b6 {[%clk 0:00:11]}  Rb3+ {[%clk 0:00:47]} 41. Kh4 {[%clk 0:00:10]}  d3 {[%clk 0:00:45]} 42. Nc3 {[%clk 0:00:09]}  Rxb6 {[%clk 0:00:44]} 43. Nxa4 {[%clk 0:00:09]}  Rb4 {[%clk 0:00:44]} 44. Nc5 {[%clk 0:00:09]}  Rxb2 {[%clk 0:00:43]} 45. Ra1 {[%clk 0:00:08]}  d2 {[%clk 0:00:42]} 46. Na4 {[%clk 0:00:06]}  Ra2 {[%clk 0:00:30]} 47. Rxa2 {[%clk 0:00:04]}  d1=Q {[%clk 0:00:30]} 0-1


[Site "https://www.chess.com"]

[Event "Titled Tuesday Blitz February 15 Late 2022"]
[White "Mirzoev, Azer"]
[Black "Jacobson, Brandon"]
[WhiteFideId "13400304"]
[BlackFideId "30901561"]
[WhiteElo "2525"]
[BlackElo "2362"]
[Result "1-0"]
[Round "02"]
[TimeControl "180+1"]
[Date "2022.02.15"]
[WhiteClock "0:01:19"]
[BlackClock "0:00:06"]

1. d4 {[%clk 0:02:59]}  Nf6 {[%clk 0:03:00]} 2. Nf3 {[%clk 0:02:58]}  b6 {[%clk 0:02:59]} 3. g3 {[%clk 0:02:58]}  Bb7 {[%clk 0:03:00]} 4. Bg2 {[%clk 0:02:59]}  c5 {[%clk 0:03:00]} 5. c4 {[%clk 0:02:57]}  g6 {[%clk 0:02:58]} 6. O-O {[%clk 0:02:53]}  Bg7 {[%clk 0:02:58]} 7. d5 {[%clk 0:02:53]}  b5 {[%clk 0:02:59]} 8. Qb3 {[%clk 0:02:50]}  a6 {[%clk 0:02:55]} 9. Nc3 {[%clk 0:02:45]}  O-O {[%clk 0:02:39]} 10. e4 {[%clk 0:02:34]}  d6 {[%clk 0:02:24]} 11. e5 {[%clk 0:02:25]}  dxe5 {[%clk 0:02:22]} 12. Nxe5 {[%clk 0:02:25]}  Qb6 {[%clk 0:01:18]} 13. Re1 {[%clk 0:02:19]}  Re8 {[%clk 0:01:12]} 14. Bf4 {[%clk 0:02:15]}  Nbd7 {[%clk 0:01:08]} 15. Nxd7 {[%clk 0:02:01]}  Nxd7 {[%clk 0:01:09]} 16. cxb5 {[%clk 0:02:01]}  axb5 {[%clk 0:00:57]} 17. Nxb5 {[%clk 0:01:59]}  Rec8 {[%clk 0:00:40]} 18. Nc3 {[%clk 0:01:52]}  Kf8 {[%clk 0:00:32]} 19. Rad1 {[%clk 0:01:36]}  Qxb3 {[%clk 0:00:18]} 20. axb3 {[%clk 0:01:36]}  c4 {[%clk 0:00:10]} 21. b4 {[%clk 0:01:28]}  Nb6 {[%clk 0:00:07]} 22. d6 {[%clk 0:01:25]}  Bxg2 {[%clk 0:00:07]} 23. dxe7+ {[%clk 0:01:25]}  Ke8 {[%clk 0:00:07]} 24. Kxg2 {[%clk 0:01:26]}  Ra7 {[%clk 0:00:06]} 25. Nb5 {[%clk 0:01:19]} 1-0


[Site "https://www.chess.com"]

[Event "Titled Tuesday Blitz February 15 Late 2022"]
[White "Moreira, Ronaldo Alonso"]
[Black "Kashefi, Amir Hosein"]
[WhiteFideId "2110547"]
[BlackFideId "12557935"]
[WhiteElo "2037"]
[BlackElo "2098"]
[Result "0-1"]
[Round "02"]
[TimeControl "180+1"]
[Date "2022.02.16"]
[WhiteClock "0:00:01"]
[BlackClock "0:00:58"]

1. d4 {[%clk 0:03:00]}  d5 {[%clk 0:02:58]} 2. c4 {[%clk 0:03:01]}  c6 {[%clk 0:02:55]} 3. cxd5 {[%clk 0:03:00]}  cxd5 {[%clk 0:02:52]} 4. Nc3 {[%clk 0:03:00]}  Nf6 {[%clk 0:02:50]} 5. Bf4 {[%clk 0:03:01]}  Nc6 {[%clk 0:02:49]} 6. e3 {[%clk 0:03:00]}  Bg4 {[%clk 0:02:47]} 7. Qb3 {[%clk 0:02:48]}  Qd7 {[%clk 0:02:38]} 8. h3 {[%clk 0:02:02]}  Bh5 {[%clk 0:02:26]} 9. g4 {[%clk 0:02:01]}  Bg6 {[%clk 0:02:20]} 10. Nf3 {[%clk 0:02:00]}  e6 {[%clk 0:02:18]} 11. Bb5 {[%clk 0:01:53]}  Bd6 {[%clk 0:02:14]} 12. Qa4 {[%clk 0:01:19]}  O-O {[%clk 0:02:07]} 13. Ne5 {[%clk 0:01:07]}  Bxe5 {[%clk 0:02:06]} 14. Bxe5 {[%clk 0:01:02]}  Ne4 {[%clk 0:02:03]} 15. Rc1 {[%clk 0:00:52]}  Rfc8 {[%clk 0:01:54]} 16. Nxe4 {[%clk 0:00:43]}  Bxe4 {[%clk 0:01:53]} 17. O-O {[%clk 0:00:43]}  a6 {[%clk 0:01:29]} 18. Bxc6 {[%clk 0:00:42]}  Rxc6 {[%clk 0:01:25]} 19. Rxc6 {[%clk 0:00:37]}  Qxc6 {[%clk 0:01:22]} 20. Qxc6 {[%clk 0:00:36]}  bxc6 {[%clk 0:01:23]} 21. Rc1 {[%clk 0:00:37]}  Rc8 {[%clk 0:01:21]} 22. b4 {[%clk 0:00:22]}  f6 {[%clk 0:01:20]} 23. Bg3 {[%clk 0:00:18]}  Kf7 {[%clk 0:01:18]} 24. a3 {[%clk 0:00:17]}  Ke7 {[%clk 0:01:15]} 25. Kf1 {[%clk 0:00:16]}  Bd3+ {[%clk 0:01:12]} 26. Kg2 {[%clk 0:00:15]}  Bc4 {[%clk 0:01:12]} 27. f4 {[%clk 0:00:11]}  Ra8 {[%clk 0:01:07]} 28. Be1 {[%clk 0:00:10]}  g6 {[%clk 0:01:05]} 29. Kf2 {[%clk 0:00:10]}  Kd7 {[%clk 0:01:05]} 30. Bc3 {[%clk 0:00:10]}  Kc7 {[%clk 0:01:04]} 31. Rb1 {[%clk 0:00:10]}  Kb6 {[%clk 0:01:03]} 32. Rb2 {[%clk 0:00:10]}  Kb5 {[%clk 0:01:03]} 33. Rd2 {[%clk 0:00:04]}  Ka4 {[%clk 0:01:03]} 34. Bb2 {[%clk 0:00:04]}  Kb3 {[%clk 0:01:02]} 35. Ke1 {[%clk 0:00:04]}  a5 {[%clk 0:01:00]} 36. bxa5 {[%clk 0:00:02]}  Rxa5 {[%clk 0:01:00]} 37. Bc1 {[%clk 0:00:03]}  Ka4 {[%clk 0:01:00]} 38. Rb2 {[%clk 0:00:02]}  Bb3 {[%clk 0:01:00]} 39. Kd2 {[%clk 0:00:01]}  Ra7 {[%clk 0:00:58]} 0-1


[Site "https://www.chess.com"]

[Event "Titled Tuesday Blitz February 15 Late 2022"]
[White "Moroni, Luca Jr"]
[Black "Senthil Maran K"]
[WhiteFideId "865834"]
[BlackFideId "25035681"]
[WhiteElo "2573"]
[BlackElo "2194"]
[Result "1-0"]
[Round "02"]
[TimeControl "180+1"]
[Date "2022.02.15"]
[WhiteClock "0:02:00"]
[BlackClock "0:00:35"]

1. d4 {[%clk 0:03:00]}  Nf6 {[%clk 0:02:56]} 2. Bf4 {[%clk 0:03:00]}  c5 {[%clk 0:02:56]} 3. e3 {[%clk 0:03:00]}  Qb6 {[%clk 0:02:55]} 4. Na3 {[%clk 0:02:57]}  d6 {[%clk 0:02:38]} 5. Nc4 {[%clk 0:02:52]}  Qc7 {[%clk 0:02:31]} 6. Nf3 {[%clk 0:02:50]}  Be6 {[%clk 0:02:31]} 7. Ncd2 {[%clk 0:02:37]}  g6 {[%clk 0:02:23]} 8. c3 {[%clk 0:02:36]}  Bg7 {[%clk 0:02:23]} 9. h3 {[%clk 0:02:37]}  O-O {[%clk 0:02:23]} 10. Be2 {[%clk 0:02:37]}  Bd5 {[%clk 0:02:01]} 11. O-O {[%clk 0:02:36]}  Nbd7 {[%clk 0:02:00]} 12. Re1 {[%clk 0:02:33]}  Ne4 {[%clk 0:01:54]} 13. c4 {[%clk 0:02:24]}  Nxd2 {[%clk 0:01:45]} 14. Nxd2 {[%clk 0:02:24]}  Be6 {[%clk 0:01:10]} 15. d5 {[%clk 0:02:24]}  Bf5 {[%clk 0:01:10]} 16. e4 {[%clk 0:02:24]}  Bxh3 {[%clk 0:01:06]} 17. gxh3 {[%clk 0:02:24]}  Bxb2 {[%clk 0:01:06]} 18. Rb1 {[%clk 0:02:24]}  Bg7 {[%clk 0:01:05]} 19. Bf1 {[%clk 0:02:22]}  Ne5 {[%clk 0:01:05]} 20. Nf3 {[%clk 0:02:15]}  Nxf3+ {[%clk 0:00:58]} 21. Qxf3 {[%clk 0:02:16]}  a6 {[%clk 0:00:59]} 22. a4 {[%clk 0:02:14]}  Rfb8 {[%clk 0:00:58]} 23. h4 {[%clk 0:02:12]}  Qa5 {[%clk 0:00:57]} 24. e5 {[%clk 0:02:06]}  Qxa4 {[%clk 0:00:36]} 25. exd6 {[%clk 0:02:02]}  exd6 {[%clk 0:00:37]} 26. Bxd6 {[%clk 0:02:01]}  Rc8 {[%clk 0:00:35]} 27. Rxb7 {[%clk 0:02:00]} 1-0


[Site "https://www.chess.com"]

[Event "Titled Tuesday Blitz February 15 Late 2022"]
[White "Moskalenko, Alexander"]
[Black "Koepke, Christian"]
[WhiteFideId "4155351"]
[BlackFideId "4655737"]
[WhiteElo "2515"]
[BlackElo "2180"]
[Result "1-0"]
[Round "02"]
[TimeControl "180+1"]
[Date "2022.02.16"]
[WhiteClock "0:02:17"]
[BlackClock "0:00:36"]

1. e4 {[%clk 0:03:00]}  c6 {[%clk 0:01:25]} 2. Nc3 {[%clk 0:03:01]}  d5 {[%clk 0:01:26]} 3. Nf3 {[%clk 0:03:01]}  dxe4 {[%clk 0:01:26]} 4. Nxe4 {[%clk 0:03:01]}  Bg4 {[%clk 0:01:26]} 5. h3 {[%clk 0:02:59]}  Bxf3 {[%clk 0:01:25]} 6. Qxf3 {[%clk 0:02:59]}  Nf6 {[%clk 0:01:26]} 7. Bc4 {[%clk 0:02:58]}  Nbd7 {[%clk 0:01:24]} 8. Qb3 {[%clk 0:02:49]}  e6 {[%clk 0:01:21]} 9. Nxf6+ {[%clk 0:02:48]}  Qxf6 {[%clk 0:01:16]} 10. Qxb7 {[%clk 0:02:49]}  Rb8 {[%clk 0:01:16]} 11. Qxc6 {[%clk 0:02:46]}  Bc5 {[%clk 0:01:09]} 12. O-O {[%clk 0:02:43]}  Ke7 {[%clk 0:01:04]} 13. Be2 {[%clk 0:02:28]}  Rhc8 {[%clk 0:01:03]} 14. Qf3 {[%clk 0:02:29]}  Qg6 {[%clk 0:01:00]} 15. c3 {[%clk 0:02:27]}  Ne5 {[%clk 0:00:50]} 16. Qh5 {[%clk 0:02:22]}  Qe4 {[%clk 0:00:36]} 17. d4 {[%clk 0:02:17]} 1-0


[Site "https://www.chess.com"]